bitfinex/quotes_ETHUSD_20250611
["timestamp","ask_amount","ask_price","bid_price","bid_amount"]
[1749639963527,1.05392,2767.4,2766.8,1.07652223]
[1749639963725,1.05392,2767.4,2767.1,0.18]
[1749639965338,0.55,2767.4,2767.1,0.18]
[1749639967349,3.681,2767.3,2767.1,0.18]
[1749639967549,3.681,2767.2,2767.1,0.9342]
[1749639967739,4.231,2767.2,2767.1,0.7542]
[1749639967933,4.231,2767.2,2767.1,0.9342]
[1749639968941,0.55,2767.2,2767.1,0.9342]
[1749639969457,0.55,2767.2,2767.1,2.01072223]
[1749639969660,0.55,2767.2,2767.1,0.9342]
[1749639969831,0.55,2767.2,2767.1,2.01072223]
[1749639971464,0.55,2767.2,2767.1,1.25652223]
[1749639971621,0.55,2767.2,2767.1,0.18]
[1749639971808,1.357,2767.2,2767.1,0.18]
[1749639972249,0.55,2767.1,2766.8,1.07652223]
[1749639972450,0.55,2767.1,2766.7,1.25652223]
[1749639972770,0.55,2767.1,2766.7,1.07652223]
[1749639973046,0.55,2767.1,2766.9,0.18]
[1749639977846,0.55,2767.1,2766.9,6.49689644]
[1749639979135,0.55,2767.3,2766.9,7.57455854]
[1749639979834,0.55,2767.1,2766.9,7.57455854]
[1749639980033,0.55,2767.1,2767.0,1.0776621]
[1749639982351,0.55,2767.1,2767.0,1.2576621]
[1749639982551,0.55,2767.3,2767.0,1.2576621]
[1749639982765,4.23,2767.3,2767.1,6.31689644]
[1749639984582,4.23,2767.3,2767.2,0.18]
[1749639988283,4.23,2767.3,2767.2,1.2576621]
[1749639990508,4.23,2767.3,2767.2,1.26087432]
[1749639997587,3.672,2767.8,2767.2,8.34067076]
[1749639997784,3.672,2767.8,2767.7,6.31689644]
[1749639998011,3.672,2767.8,2767.7,7.39704416]
[1749639998209,4.222,2767.8,2767.7,6.31689644]
[1749639998698,4.222,2767.8,2767.7,7.39704416]
[1749640002114,4.222,2767.8,2767.7,1.08014772]
[1749640002320,0.55,2767.7,2767.6,1.90424772]
[1749640002520,0.55,2767.7,2767.6,8.22114416]
[1749640006406,0.55,2767.7,2767.6,7.14099644]
[1749640007623,0.55,2767.7,2767.6,7.32099644]
[1749640008612,0.8198,2768.8,2767.7,10.8244]
[1749640008813,3.677,2769.0,2768.7,6.31689644]
[1749640009135,3.677,2769.0,2768.9,6.31689644]
[1749640009328,3.677,2769.0,2768.9,6.61838172]
[1749640009641,4.227,2769.0,2768.9,6.61838172]
[1749640009944,3.677,2769.0,2768.9,6.61838172]
[1749640010348,4.227,2769.0,2768.9,6.61838172]
[1749640012086,3.677,2769.6,2768.9,7.37788172]
[1749640012259,3.677,2769.6,2769.4,6.31689644]
[1749640012556,3.677,2769.6,2769.5,0.30141997]
[1749640012718,4.227,2769.6,2769.5,0.30141997]
[1749640012920,0.55,2769.6,2769.5,0.30141997]
[1749640013165,3.677,2769.6,2769.5,0.30141997]
[1749640014010,4.227,2769.6,2769.5,0.30141997]
[1749640018061,4.6677,2769.6,2769.5,0.30141997]
[1749640021594,5.481,2769.6,2769.5,0.30141997]
[1749640022859,4.227,2769.6,2769.5,0.30141997]
[1749640023060,0.8028,2770.4,2769.5,10.30141997]
[1749640023290,3.673,2770.3,2769.7,6.31689644]
[1749640023466,3.673,2770.3,2769.9,0.18]
[1749640023794,4.13858,2770.3,2770.0,0.30136556]
[1749640023992,0.55,2770.2,2770.0,0.30136556]
[1749640024165,4.13858,2770.3,2770.0,0.30136556]
[1749640025063,0.55,2770.2,2770.0,0.30136556]
[1749640025262,1.117138,2770.2,2770.0,0.30136556]
[1749640025460,1.297138,2770.2,2770.0,0.30136556]
[1749640029714,7.61403444,2770.2,2770.0,0.30136556]
[1749640029862,11.3745,2770.1,2770.0,0.30136556]
[1749640030911,11.5774874,2770.1,2770.0,0.30136556]
[1749640031116,13.58795218,2770.1,2770.0,0.30136556]
[1749640031294,17.25895218,2770.1,2770.0,0.30136556]
[1749640031676,17.46192271,2770.1,2770.0,0.30136556]
[1749640031884,17.25895218,2770.1,2770.0,0.30136556]
[1749640033063,17.4619264,2770.1,2770.0,0.30136556]
[1749640033261,17.25895218,2770.1,2770.0,0.30136556]
[1749640033964,25.02895218,2770.1,2770.0,0.17578604]
[1749640034296,0.55,2769.4,2768.7,0.18]
[1749640034501,0.73,2769.2,2768.8,0.30149617]
[1749640034679,0.55,2769.0,2768.8,0.30149617]
[1749640035130,0.55,2768.9,2768.8,0.30149617]
[1749640035306,4.223,2768.9,2768.8,7.43169261]
[1749640035504,4.223,2768.9,2768.8,7.61169261]
[1749640036633,4.223,2768.9,2768.8,1.29479617]
[1749640036933,11.78529644,2768.9,2768.8,0.30149617]
[1749640037135,5.4684,2768.9,2768.8,0.30149617]
[1749640037691,0.55,2768.9,2768.8,0.30149617]
[1749640037942,4.227,2768.9,2768.8,0.30149617]
[1749640038139,0.55,2768.8,2768.4,7.12089644]
[1749640039125,0.55,2768.8,2768.6,6.31689644]
[1749640039325,0.55,2768.8,2768.4,0.804]
[1749640040811,1.7388,2768.8,2768.0,1.07407677]
[1749640041040,1.7388,2768.8,2767.9,1.07407677]
[1749640041328,1.7388,2768.8,2767.8,0.8226]
[1749640041329,0.55,2768.6,2767.8,0.8226]
[1749640041530,1.72388,2768.6,2767.8,0.8226]
[1749640045820,1.72388,2768.6,2767.5,1.7041]
[1749640045821,0.55,2768.4,2767.5,1.7041]
[1749640046041,0.55,2768.2,2767.5,1.7041]
[1749640046914,0.73,2768.2,2767.7,0.18]
[1749640047130,0.55,2768.2,2767.6,9.63507085]
[1749640047437,0.55,2768.2,2767.9,0.18]
[1749640050141,0.55,2768.2,2767.9,9.81507085]
[1749640050343,0.55,2768.2,2767.9,0.18]
[1749640052103,0.55,2768.2,2768.1,9.63507085]
[1749640052307,3.677,2768.7,2768.1,9.81507085]
[1749640052539,0.55,2768.6,2768.1,9.63507085]
[1749640052709,3.677,2768.7,2768.3,0.18]
[1749640052910,0.55,2768.6,2768.3,0.18]
[1749640054541,0.55,2768.6,2768.4,0.00155834]
[1749640057044,0.55,2768.6,2768.4,9.63662919]
[1749640057244,0.55,2768.9,2768.5,0.9781]
[1749640057474,0.55,2768.9,2768.7,9.63507085]
[1749640057854,0.55,2768.9,2768.7,9.81507085]
[1749640058673,3.676,2769.0,2768.7,0.18]
[1749640058969,0.55,2768.9,2768.7,0.18]
[1749640059469,0.55,2768.9,2768.7,6.48793988]
[1749640060266,3.676,2769.0,2768.7,6.48793988]
[1749640060473,3.88003036,2769.4,2768.9,6.30793988]
[1749640060779,3.88003036,2769.4,2769.2,6.30793988]
[1749640060941,3.88003036,2769.4,2769.2,6.48793988]
[1749640061340,3.88003036,2769.4,2769.3,0.18]
[1749640061688,4.43003036,2769.4,2769.3,0.18]
[1749640062495,4.8730334,2769.4,2768.9,1.07242735]
[1749640062641,4.8730334,2769.4,2769.1,0.18]
[1749640063941,5.6323334,2769.4,2769.1,0.18]
[1749640064371,0.55,2769.3,2769.1,0.18]
[1749640064553,0.55,2769.3,2768.5,1.07242735]
[1749640064760,4.51116228,2769.4,2768.6,0.18]
[1749640064761,0.55,2769.0,2768.6,0.18]
[1749640068262,0.55,2768.8,2768.4,0.18]
[1749640070007,0.7593,2769.2,2768.6,9.62862331]
[1749640070181,0.7593,2769.2,2768.2,2.81692735]
[1749640070182,3.679,2769.2,2768.9,9.62862331]
[1749640070370,0.55,2769.1,2768.9,9.80862331]
[1749640074699,0.55,2769.1,2768.9,0.18]
[1749640082478,0.55,2768.9,2768.7,0.18]
[1749640082685,0.55,2768.7,2768.3,1.07338425]
[1749640082879,0.55,2768.5,2768.3,0.18]
[1749640083083,0.55,2768.5,2768.2,0.18]
[1749640083981,0.55,2768.3,2768.2,0.18]
[1749640085094,0.55,2768.3,2768.2,0.18155845]
[1749640085519,0.55,2768.3,2768.2,0.00155845]
[1749640086019,1.68667,2768.3,2768.2,0.00155845]
[1749640087780,12.47747,2768.3,2768.2,0.00155845]
[1749640087997,0.55,2768.1,2767.4,0.18]
[1749640088190,0.73,2767.7,2767.2,0.18]
[1749640088391,0.55,2767.7,2767.0,0.95]
[1749640088630,0.55,2767.4,2767.0,0.18]
[1749640088805,4.231,2767.4,2767.0,0.18]
[1749640089016,0.7657,2767.3,2767.0,0.18]
[1749640090490,1.28337,2767.3,2767.0,0.18]
[1749640092121,0.55,2767.2,2766.5,1.8638565]
[1749640092327,0.55,2767.2,2766.9,0.18]
[1749640092623,0.73,2767.0,2766.5,0.18]
[1749640092806,0.73,2767.0,2766.5,9.81896862]
[1749640099210,0.7719,2766.9,2766.5,9.81896862]
[1749640099610,0.55,2766.8,2766.3,0.95]
[1749640099848,0.73,2766.8,2766.3,1.13]
[1749640100545,1.09723254,2766.8,2766.3,1.13]
[1749640100715,0.18691325,2766.7,2766.3,1.13]
[1749640101933,0.55,2766.8,2766.5,10.44326862]
[1749640102240,0.55,2767.0,2766.5,9.63896862]
[1749640102644,0.55,2766.8,2766.3,0.18]
[1749640102808,0.55,2766.8,2766.1,9.355]
[1749640103009,0.55,2766.8,2766.0,0.95]
[1749640103424,0.55,2766.8,2766.2,9.63896862]
[1749640103624,0.55,2766.8,2766.5,9.63896862]
[1749640104941,0.55,2766.8,2766.7,9.63896862]
[1749640105444,0.55,2766.8,2766.7,6.31689777]
[1749640105951,0.55,2767.0,2766.7,6.31689777]
[1749640106245,4.232,2767.3,2766.9,6.31689777]
[1749640106447,0.49879,2767.2,2766.9,6.31689777]
[1749640107319,4.232,2767.3,2766.9,6.31689777]
[1749640107738,4.232,2767.3,2766.6,0.7589]
[1749640108050,4.232,2767.3,2767.0,6.31689777]
[1749640110523,4.23,2767.3,2767.0,6.31689777]
[1749640110856,4.78295285,2767.3,2767.0,6.31689777]
[1749640113126,4.78295285,2767.3,2766.9,0.18]
[1749640113332,0.55,2767.1,2766.8,6.31689777]
[1749640113553,0.55,2767.1,2766.7,6.49689777]
[1749640113792,4.80488529,2767.1,2766.9,6.31689777]
[1749640113950,0.55,2767.1,2766.9,6.31689777]
[1749640114156,4.23,2767.1,2766.9,6.49689777]
[1749640114491,0.55,2767.3,2766.9,6.49689777]
[1749640114692,0.7918,2767.6,2767.2,6.31689777]
[1749640114997,7.26889777,2768.7,2767.5,6.31689777]
[1749640114998,0.7918,2767.9,2767.5,6.31689777]
[1749640115158,0.54000635,2768.0,2767.8,6.31689777]
[1749640115159,0.18,2768.0,2767.8,6.31689777]
[1749640115488,0.55,2767.9,2767.8,6.31689777]
[1749640115691,0.55,2767.9,2767.6,6.49689777]
[1749640115857,1.06953,2767.9,2767.6,6.49689777]
[1749640116195,0.51953,2767.9,2767.6,6.49689777]
[1749640116400,0.55,2767.8,2767.6,6.49689777]
[1749640116581,0.55,2767.8,2767.7,0.00155873]
[1749640119289,0.55,2767.8,2767.6,0.18]
[1749640120299,1.06953,2767.9,2767.6,0.18]
[1749640120470,0.493353,2767.8,2767.6,0.18]
[1749640120664,1.043353,2767.8,2767.3,1.07485596]
[1749640120870,0.55,2767.6,2767.2,0.18]
[1749640121200,0.55,2767.4,2767.0,1.25485596]
[1749640121413,4.232,2767.4,2767.0,0.18]
[1749640122393,4.232,2767.4,2767.0,9.82227172]
[1749640122994,4.232,2767.4,2767.0,10.89712768]
[1749640123403,4.232,2767.4,2767.0,10.71712768]
[1749640123585,4.232,2767.4,2767.2,0.18]
[1749640125299,0.8044,2767.3,2767.2,0.18]
[1749640125488,0.8044,2767.3,2766.7,2.20685596]
[1749640125489,0.73,2767.2,2766.7,2.20685596]
[1749640125885,0.73,2767.2,2766.7,0.18]
[1749640127438,0.7831,2767.1,2766.7,0.18]
[1749640127589,0.55,2767.0,2766.4,1.07485596]
[1749640127794,0.73,2766.8,2766.3,1.25485596]
[1749640128124,0.93792,2766.8,2766.3,0.18]
[1749640128330,3.683,2766.7,2766.3,0.18]
[1749640136746,0.55,2766.2,2765.8,1.25892116]
[1749640136909,0.55,2766.2,2765.9,10.45577172]
[1749640137109,0.55,2766.2,2766.1,0.18]
[1749640137410,0.55,2766.2,2766.1,6.49914017]
[1749640139155,0.55,2766.2,2766.1,6.31914017]
[1749640140368,0.7841,2766.8,2766.1,6.3206998]
[1749640140540,3.686,2766.9,2766.7,6.31914017]
[1749640140733,0.3686,2766.8,2766.7,6.31914017]
[1749640140938,0.9186,2766.8,2766.7,6.31914017]
[1749640141639,0.7841,2767.1,2766.7,6.31914017]
[1749640141935,0.55,2766.9,2766.7,6.31914017]
[1749640142536,0.55,2766.9,2766.5,6.31914017]
[1749640142859,0.809,2766.8,2766.1,7.39908595]
[1749640143059,0.55,2766.7,2766.1,6.31914017]
[1749640143360,0.55,2766.7,2765.9,6.31914017]
[1749640143674,0.55,2766.6,2765.8,1.84746438]
[1749640143837,0.55,2766.6,2765.9,6.31914017]
[1749640144369,1.3766,2766.6,2765.9,6.31914017]
[1749640145054,1.3766,2766.6,2766.1,6.31914017]
[1749640145237,1.3766,2766.6,2765.9,9.65164461]
[1749640147791,0.55,2766.4,2766.2,9.65164461]
[1749640148078,0.55,2766.4,2766.3,0.18]
[1749640153156,0.55,2766.5,2766.3,9.83164461]
[1749640153780,0.7897,2766.9,2766.3,10.72930899]
[1749640153954,0.7897,2767.2,2766.8,9.65164461]
[1749640154154,4.4747,2767.2,2766.8,9.83164461]
[1749640154380,1.02644277,2767.3,2766.9,0.00155918]
[1749640154579,3.686,2767.3,2767.1,0.18]
[1749640154771,0.55,2767.2,2767.1,0.18]
[1749640155682,3.686,2767.3,2767.1,0.18]
[1749640156049,0.55,2767.2,2767.1,0.18]
[1749640157180,0.55,2767.5,2767.1,9.83164461]
[1749640157379,0.55,2767.3,2767.1,9.83164461]
[1749640157593,0.9986,2767.6,2767.1,9.83164461]
[1749640157594,0.55,2767.5,2767.1,9.83164461]
[1749640157780,4.234,2767.5,2767.1,10.91183782]
[1749640158278,4.234,2767.5,2767.1,9.83164461]
[1749640159899,4.233,2767.5,2767.1,9.83164461]
[1749640161698,4.233,2767.5,2767.1,0.18]
[1749640161997,4.231,2767.5,2767.2,0.00155901]
[1749640164767,4.77278685,2767.5,2766.8,1.08019321]
[1749640164967,0.73,2767.3,2766.8,0.18]
[1749640168785,0.73,2767.3,2766.8,6.49863261]
[1749640168996,1.30812869,2767.3,2766.8,6.49863261]
[1749640175124,1.49641721,2767.3,2766.8,6.49863261]
[1749640185455,3.672,2767.2,2766.8,6.49863261]
[1749640185732,3.671,2767.1,2767.0,6.31863261]
[1749640186434,0.55,2767.0,2766.8,6.49863261]
[1749640190564,0.36828852,2767.3,2766.8,6.49863261]
[1749640190773,4.221,2767.2,2767.0,6.31863261]
[1749640192710,4.221,2767.2,2767.1,0.00155907]
[1749640195703,4.221,2767.2,2767.0,6.31863261]
[1749640198075,4.221,2767.2,2767.0,7.39706895]
[1749640198277,4.221,2767.2,2766.9,1.07843634]
[1749640198473,4.76277885,2767.2,2766.8,1.25843634]
[1749640199921,0.73,2767.0,2766.7,1.07843634]
[1749640200325,0.73,2767.0,2766.6,1.07843634]
[1749640200629,0.73,2767.0,2766.5,1.25843634]
[1749640200990,0.73,2767.0,2766.6,1.07843634]
[1749640201419,0.73,2767.0,2766.5,1.25843634]
[1749640201621,1.32194838,2767.0,2766.5,1.25843634]
[1749640201823,0.55,2766.8,2766.5,1.07843634]
[1749640202033,1.3087,2766.5,2766.3,1.07843634]
[1749640202229,4.9797,2766.5,2766.3,1.07843634]
[1749640202530,4.9797,2766.5,2766.2,1.07843634]
[1749640202825,4.9797,2766.5,2766.1,1.25843634]
[1749640203029,5.53193803,2766.5,2766.1,1.07843634]
[1749640203218,0.55,2766.3,2766.1,1.07843634]
[1749640203419,0.55,2766.3,2766.2,0.00155958]
[1749640205697,0.55,2766.3,2766.2,0.94845958]
[1749640206126,0.55,2766.6,2766.2,0.9469]
[1749640206339,0.18,2766.7,2766.2,0.9469]
[1749640206340,0.55,2766.4,2766.2,0.9469]
[1749640206548,0.55,2766.4,2766.3,6.31863261]
[1749640208437,0.55,2766.4,2766.1,1.07843634]
[1749640208639,0.4221,2766.3,2765.9,1.25843634]
[1749640208940,0.55,2766.1,2765.8,1.07843634]
[1749640209233,0.55,2766.1,2765.7,6.49863261]
[1749640209234,0.55,2766.1,2765.9,6.31863261]
[1749640210897,0.55,2766.1,2765.7,7.57706895]
[1749640211098,0.55,2766.1,2766.0,0.0068579]
[1749640211719,1.3705,2766.1,2766.0,0.0068579]
[1749640212436,0.55,2766.1,2766.0,0.0068579]
[1749640214052,0.55,2766.1,2765.9,6.31863261]
[1749640214755,0.55,2766.1,2765.7,6.49863261]
[1749640219037,0.55,2766.1,2765.8,0.01]
[1749640219443,0.55,2766.1,2765.9,6.31863261]
[1749640220165,0.55,2766.1,2766.0,0.01]
[1749640221866,0.55,2766.1,2765.9,6.31863261]
[1749640222065,4.222,2766.1,2765.9,6.31863261]
[1749640222871,0.55,2766.1,2765.9,6.31863261]
[1749640226785,0.55,2766.1,2766.0,0.00451512]
[1749640229496,0.55,2766.1,2765.9,6.31863261]
[1749640229710,0.55,2766.1,2765.9,7.09253261]
[1749640229885,0.55,2766.1,2765.9,7.27253261]
[1749640230073,0.55,2766.1,2765.9,8.35010867]
[1749640231469,0.55,2766.1,2766.0,1.07757606]
[1749640231796,1.04833,2766.1,2765.8,1.07757606]
[1749640232092,0.55,2766.1,2765.7,1.25757606]
[1749640232267,0.55,2766.1,2765.8,6.31863261]
[1749640234192,0.55,2766.1,2765.8,7.39620867]
[1749640234485,0.55,2766.1,2765.8,6.31863261]
[1749640236394,0.55,2766.1,2765.8,7.40017258]
[1749640236592,4.221,2766.3,2766.0,6.31863261]
[1749640237996,4.221,2766.3,2765.9,1.26153997]
[1749640238498,4.221,2766.3,2766.0,1.08153997]
[1749640242012,4.221,2766.3,2766.0,1.08190068]
[1749640245731,0.55,2766.1,2766.0,1.08190068]
[1749640245912,0.55,2766.1,2766.0,1.08198358]
[1749640246421,3.671,2766.2,2766.0,7.75889023]
[1749640246629,4.221,2766.2,2766.1,1.26180151]
[1749640247803,4.221,2766.2,2766.1,0.18]
[1749640249430,0.55,2766.2,2766.1,0.18]
[1749640249836,3.671,2766.3,2766.1,0.9912]
[1749640250029,0.55,2766.3,2766.2,1.08102365]
[1749640250330,4.221,2766.3,2766.2,6.31863261]
[1749640250837,3.671,2766.7,2766.2,7.75938583]
[1749640251135,0.55,2766.6,2766.3,1.08059775]
[1749640251336,0.18,2766.3,2766.0,1.08059775]
[1749640251498,1.3052,2766.1,2765.8,1.26059775]
[1749640252125,1.3052,2766.1,2765.8,0.18]
[1749640253318,0.55,2766.1,2765.8,1.26136323]
[1749640254050,0.55,2766.1,2765.8,7.57999584]
[1749640254246,0.9352,2766.3,2766.0,6.31863261]
[1749640254426,0.55,2766.2,2766.0,6.49863261]
[1749640254627,3.671,2766.4,2766.1,1.08136323]
[1749640254837,3.671,2766.4,2766.3,1.26136323]
[1749640255153,4.221,2766.4,2766.3,1.26136323]
[1749640256550,4.221,2766.4,2766.3,0.18]
[1749640257858,4.221,2766.4,2766.3,0.18272735]
[1749640258256,0.55,2766.4,2766.3,0.18272735]
[1749640258456,0.55,2766.4,2766.3,1.26326959]
[1749640260557,0.55,2766.4,2766.3,0.18272735]
[1749640260771,0.55,2766.4,2766.3,0.18]
[1749640261274,0.445491,2766.4,2766.3,1.26054224]
[1749640261439,0.445491,2766.4,2766.3,0.18]
[1749640262351,0.445491,2766.4,2766.3,1.26054224]
[1749640262668,0.445491,2766.4,2766.3,2.03394224]
[1749640263052,0.445491,2766.4,2766.3,0.9534]
[1749640263252,0.445491,2766.4,2766.3,2.03394224]
[1749640263571,0.18,2766.8,2766.3,2.03394224]
[1749640263761,3.67,2766.8,2766.7,6.31863261]
[1749640263961,3.67,2766.8,2766.7,0.18]
[1749640264186,4.22,2766.8,2766.7,0.18150228]
[1749640267184,4.22,2766.8,2766.7,0.18]
[1749640268303,0.55,2767.1,2766.7,7.25823261]
[1749640268607,0.55,2767.1,2766.8,6.31863261]
[1749640271313,0.55,2767.3,2767.0,0.18]
[1749640273201,0.55,2767.5,2767.1,7.09763261]
[1749640273405,0.20317967,2767.6,2767.3,6.31863261]
[1749640273581,0.20317967,2767.6,2767.5,6.31863261]
[1749640273781,0.20317967,2767.6,2767.5,7.27763261]
[1749640280404,0.20317967,2767.6,2767.5,8.22363261]
[1749640281143,0.20317967,2767.6,2767.5,24.54226522]
[1749640281640,0.08093142,2767.6,2767.5,26.68275796]
[1749640281850,0.08093142,2767.6,2767.5,24.54226522]
[1749640282345,0.08093142,2767.6,2767.5,28.21126522]
[1749640282905,0.08093142,2767.6,2767.5,28.51290301]
[1749640283530,0.55,2768.6,2767.6,10.7673]
[1749640283726,0.55,2768.6,2768.5,6.31863261]
[1749640283933,0.55,2768.6,2768.5,6.49863261]
[1749640285822,0.55,2768.6,2768.5,0.18]
[1749640287153,0.18,2768.9,2768.5,6.49863261]
[1749640287350,3.85615326,2769.1,2768.8,6.31863261]
[1749640287551,3.847,2769.3,2769.0,6.31863261]
[1749640287755,0.68325302,2769.3,2768.8,6.49863261]
[1749640287918,0.18,2769.3,2768.8,6.49863261]
[1749640288453,0.55,2769.2,2768.8,6.49863261]
[1749640291240,0.55,2769.2,2768.8,0.18]
[1749640291440,0.8231,2769.1,2768.8,0.18]
[1749640291647,0.55,2769.0,2768.8,0.18]
[1749640295242,0.55,2769.0,2768.4,0.946]
[1749640295566,0.55,2769.0,2768.6,0.18]
[1749640296063,0.55,2769.0,2768.6,6.49863261]
[1749640299890,0.55,2769.0,2768.7,0.00150123]
[1749640301293,7.65813261,2768.8,2768.7,0.00150123]
[1749640302303,1.3395,2768.8,2768.7,0.00150123]
[1749640302597,0.55,2768.5,2768.0,0.18]
[1749640302760,3.666,2768.4,2768.0,0.18]
[1749640303353,0.55,2768.2,2768.0,0.18]
[1749640303773,0.55,2768.2,2767.7,1.07197364]
[1749640303974,0.73,2768.2,2767.7,0.18]
[1749640304394,0.73,2768.2,2767.8,0.00272595]
[1749640304753,0.73,2768.2,2767.9,0.85939351]
[1749640304954,0.73,2768.2,2768.0,0.85939351]
[1749640305151,0.73,2768.2,2767.8,0.00272595]
[1749640305400,0.73,2768.2,2767.9,0.85939864]
[1749640305695,0.73,2768.2,2768.0,0.85939864]
[1749640305892,0.73,2768.2,2768.1,0.85939864]
[1749640309162,0.73,2768.2,2768.1,0.86090019]
[1749640310683,4.217,2768.2,2768.1,0.86090019]
[1749640312003,4.217,2768.2,2768.1,0.85939864]
[1749640312004,4.71645,2768.2,2768.1,0.85939864]
[1749640312407,4.71645,2768.2,2767.7,1.07197364]
[1749640312607,0.73,2768.0,2767.8,0.86056824]
[1749640312814,0.73,2768.0,2767.9,0.86056824]
[1749640313828,0.91821607,2768.0,2767.9,0.86056824]
[1749640314017,0.808,2768.3,2767.9,7.17920085]
[1749640314328,4.397,2768.2,2768.0,0.86056824]
[1749640314534,4.397,2768.2,2768.1,0.86056824]
[1749640314916,4.397,2768.2,2768.1,0.86005749]
[1749640316532,4.397,2768.2,2767.8,0.18]
[1749640316695,4.397,2768.2,2767.9,0.85961003]
[1749640316891,4.397,2768.2,2768.0,0.85961003]
[1749640317096,4.397,2768.2,2768.0,0.00272575]
[1749640319629,4.397,2768.2,2767.8,0.18]
[1749640319832,4.397,2768.2,2767.9,0.85970724]
[1749640320136,4.397,2768.2,2768.0,0.85970724]
[1749640320337,4.397,2768.2,2767.8,0.18]
[1749640320539,4.397,2768.2,2767.9,0.8596886]
[1749640320722,4.397,2768.2,2768.0,0.8596886]
[1749640320914,4.397,2768.2,2768.1,0.8596886]
[1749640323335,4.397,2768.2,2768.1,0.86004676]
[1749640323505,4.397,2768.2,2768.1,0.86006846]
[1749640326440,4.397,2768.2,2768.1,0.86211976]
[1749640329113,4.397,2768.2,2768.1,0.86006846]
[1749640329535,5.62922133,2768.2,2768.1,0.86006846]
[1749640329841,0.55,2767.6,2767.5,1.07505845]
[1749640330043,14.217,2767.6,2767.5,0.86246852]
[1749640330244,0.55,2767.4,2767.0,1.07505845]
[1749640330445,0.18,2767.2,2767.1,0.86266825]
[1749640330648,1.4818,2767.2,2767.1,0.86266825]
[1749640330851,2.29793069,2767.2,2767.1,0.86266825]
[1749640331146,5.96493069,2767.2,2767.1,0.86266825]
[1749640332605,0.55,2767.1,2766.7,1.07505845]
[1749640332805,0.55,2766.9,2766.8,0.86163787]
[1749640335579,0.55,2766.7,2766.3,1.25505845]
[1749640335770,0.55,2766.5,2766.4,0.86085711]
[1749640336250,0.55,2766.5,2766.4,0.86087391]
[1749640336449,0.18829519,2767.0,2766.4,0.86087391]
[1749640336450,0.55,2766.6,2766.4,7.17950652]
[1749640336766,0.55,2766.6,2766.5,7.17950652]
[1749640336913,0.55,2766.6,2766.5,0.86087391]
[1749640338247,4.217,2766.6,2766.5,7.17950652]
[1749640338449,4.217,2766.6,2766.5,7.35950652]
[1749640340550,0.55,2766.6,2766.5,7.35950652]
[1749640340847,4.218,2766.6,2766.5,8.14430652]
[1749640341014,3.668,2766.6,2766.5,8.14430652]
[1749640343251,3.668,2767.0,2766.6,0.829]
[1749640343567,4.218,2767.0,2766.9,0.18]
[1749640343913,4.218,2767.0,2766.9,1.04087391]
[1749640344553,4.40627185,2767.0,2766.9,1.04087391]
[1749640345330,4.218,2767.0,2766.9,1.04087391]
[1749640345854,4.40627645,2767.0,2766.9,1.04087391]
[1749640348272,4.40627645,2767.0,2766.9,0.86087391]
[1749640348434,0.55,2766.9,2766.4,1.88839238]
[1749640348642,0.55,2766.9,2766.5,1.0396539]
[1749640348843,0.55,2766.9,2766.6,0.8596539]
[1749640349026,0.55,2766.9,2766.7,0.8596539]
[1749640349223,0.55,2766.9,2766.5,0.18]
[1749640349541,0.55,2766.9,2766.6,0.85981392]
[1749640349742,0.55,2766.9,2766.7,0.85981392]
[1749640349943,0.55,2766.9,2766.5,0.18]
[1749640350124,0.55,2766.9,2766.6,0.85991479]
[1749640350324,0.55,2766.9,2766.7,0.85991479]
[1749640350520,0.55,2766.9,2766.5,0.18]
[1749640350739,0.55,2766.9,2766.6,0.85991852]
[1749640350936,0.55,2766.9,2766.7,0.85991852]
[1749640351120,0.55,2766.9,2766.8,0.85991852]
[1749640351325,0.55,2766.7,2766.5,0.18]
[1749640351539,0.55,2766.7,2766.6,0.86016528]
[1749640351960,0.55,2766.7,2766.6,0.86363265]
[1749640354863,0.55,2766.7,2766.6,0.86016528]
[1749640356554,0.55,2766.7,2766.6,0.86355828]
[1749640359478,0.55,2766.7,2766.6,0.86016528]
[1749640359805,0.55,2766.7,2766.6,1.93625766]
[1749640365406,0.55,2766.7,2766.6,0.86016528]
[1749640365877,0.55,2766.7,2766.6,0.8643064]
[1749640368717,0.55,2766.7,2766.6,0.86016528]
[1749640370579,0.55,2766.7,2766.6,0.8632557]
[1749640373421,0.55,2766.7,2766.6,0.86016528]
[1749640374827,0.55,2766.7,2766.6,1.93625766]
[1749640377106,1.3534,2766.7,2766.6,0.86016528]
[1749640377309,13.13943332,2766.7,2766.6,0.86016528]
[1749640377525,11.3534,2766.7,2766.6,0.86016528]
[1749640378092,11.5334,2766.7,2766.6,0.86016528]
[1749640378296,4.218,2766.7,2766.6,0.86511549]
[1749640378796,0.55,2766.7,2766.6,1.94120787]
[1749640379001,4.218,2766.7,2766.6,1.94120787]
[1749640379201,4.218,2766.7,2766.6,0.86511549]
[1749640381083,4.218,2766.7,2766.6,0.86016528]
[1749640383122,4.218,2766.7,2766.6,1.04016528]
[1749640383896,0.18,2767.2,2766.6,8.78815625]
[1749640384090,3.668,2767.1,2766.9,1.08035496]
[1749640384296,4.218,2767.1,2767.0,0.86016528]
[1749640386977,0.55,2767.1,2767.0,0.86016528]
[1749640387603,0.55,2767.1,2767.0,1.04016528]